Cogmind - Beta 14 @@@ ROGUE MODE // 2024.08.22 @ 21:40:38 Player: TheProctologist Result: Destroyed by as-96079 with Assembled Heavy Rifle Performance ------------- Evolutions (0) 0 Regions Visited (2) 400 Robots Destroyed (23) 115 Value Destroyed (452) 452 Prototype IDs (2) 40 Alien Tech Used (0) 0 Bonus (0) 0 TOTAL SCORE: 1007 Bonus ------- None Cogmind --------- Core Integrity 0/250 Matter 236/300 Energy 100/100 System Corruption 4% Temperature Cool (0) Movement Walking (260) Ox2 Location -10/Mines Parts ------- > --- POWER (1) -------- (None) > --- PROPULSION (2) --- Aluminum Leg > --- UTILITY (2) ------ Large Storage Unit Hacking Suite > --- WEAPON (2) ------- Heavy Assault Rifle EMP Blaster > --- INVENTORY (15) --- Ion Engine Light Ion Engine Aluminum Leg Aluminum Leg Improved Heat Sink Medium Matter Pod (100) Weight Redist. System Structural Scanner Transport Network Coupler Heavy Assault Rifle Heavy Assault Rifle Heavy Assault Rifle Peak State ------------ > --- POWER ------------ Ion Engine > --- PROPULSION ------- Aluminum Leg Aluminum Leg > --- UTILITY ---------- Medium Storage Unit Hacking Suite > --- WEAPON ----------- Heavy Assault Rifle Heavy Assault Rifle > --- INVENTORY -------- Ion Engine Light Ion Engine Aluminum Leg Aluminum Leg Heat Sink Improved Heat Sink Medium Matter Pod Structural Scanner Assault Rifle Grenade Launcher [Rating: 12] Favorites ----------- Power Light Ion Engine Engine Light Ion Engine Propulsion Aluminum Leg Leg Aluminum Leg Utility Hacking Suite Device Improved Terrain Scanner Storage Medium Storage Unit Hackware Hacking Suite Weapon Heavy Assault Rifle Energy Gun Medium Laser Ballistic Gun Heavy Assault Rifle Launcher EMP Blaster Build | -11 -10 -10 ------- Run | Yrd Mat Min Slots Evolved . | . . . Power . | . . . Propulsion . | . . . Utility . | . . . Weapon . | . . . Parts Attached 23 | 7 15 1 Power 5 | 1 4 . Engine 5 | 1 4 . Core . | . . . Reactor . | . . . Propulsion 6 | 2 4 . Treads . | . . . Leg 6 | 2 4 . Wheel . | . . . Hover . | . . . Flight . | . . . Utility 5 | 2 3 . Device 1 | 1 . . Storage 3 | 1 2 . Processor . | . . . Hackware 1 | . 1 . Protection . | . . . Artifact . | . . . Weapon 7 | 2 4 1 Energy Gun 2 | 1 1 . Energy Cannon . | . . . Ballistic Gun 3 | 1 2 . Ballistic Cannon . | . . . Launcher 2 | . 1 1 Special Weapon . | . . . Impact Weapon . | . . . Slashing Weapon . | . . . Piercing Weapon . | . . . Special Melee Weapon . | . . . Unidentified Prototypes . | . . . Parts Lost 2 | . . 2 Power 1 | . . 1 Propulsion 1 | . . 1 Utility . | . . . Weapon . | . . . Highest Loss Streak 2 | . . 2 To Critical Strikes . | . . . Average Slot Usage (%) 99 | . 99 100 Engine 14 | . 14 14 Leg 28 | . 28 28 Device 1 | . 1 . Storage 14 | . 14 14 Hackware 12 | . 12 14 Energy Gun 8 | . 8 . Ballistic Gun 19 | . 19 21 Peak Build Rating 12 | 9 12 12 Average Rating 10 | 6 10 11 On Entrance 7 | . 9 12 Naked Turns . | . . . Heaviest Build 32 | 13 31 32 Greatest Support 20 | 20 20 20 Greatest Overweight (x) 1 | 1 1 1 Average Overweight (x) . | . . 1 Largest Inventory Capacity 15 | 8 15 15 Average Capacity 10 | 7 10 15 Most Carried 13 | 3 13 12 Average Carried 8 | 2 8 12 Final Capacity 15 | 8 15 15 Final Carried 12 | 3 12 12 Class Distribution -------------------- 73% | Mutant 26% | Scavenger-Mutant Dominant Class ---------------- Mutant | -10/Materials Mutant | -10/Mines Resources | -11 -10 -10 ----------- Run | Yrd Mat Min Matter Collected 752 | 274 478 . Remotely . | . . . Salvage Created 733 | 80 588 65 Parts 44 | 4 38 2 Haulers Intercepted 1 | . 1 . Recyclers Shooed . | . . . Parts Field Recycled . | . . . Retrieved Matter . | . . . Parts Self-Destructed . | . . . Prevented . | . . . Kills | -11 -10 -10 ------- Run | Yrd Mat Min Combat Hostiles Destroyed 20 | . 15 5 Guns 14 | . 12 2 AOE 6 | . 3 3 Classes Destroyed 8 | 2 5 1 Tunneler 1 | 1 . . Hauler 1 | . 1 . Recycler 2 | 1 1 . Operator 1 | . 1 . Watcher 1 | . 1 . Swarmer 8 | . 6 2 Grunt 9 | . 9 . Assembled 3 | . . 3 Best Kill Streak 6 | 2 6 3 Combat Bots Only 5 | . 5 3 Max Kills in Single Turn 3 | 1 3 2 Gunslinging 1 | . . 1 Exploded 3 | . 3 2 Melee . | . . . Uniques/NPCs Destroyed . | . . . Combat | -11 -10 -10 -------- Run | Yrd Mat Min Hostile Shots Fired 98 | . 51 47 Missed 25 | . 12 13 Damage Taken 1104 | . 586 518 Core 253 | . 157 96 Absorbed by Shields . | . . . Core Remaining (%) 100 | 100 . . Volleys Fired 77 | 4 64 9 Largest 2 | 2 2 2 Hottest 70 | 70 70 56 Shots Fired 154 | 8 128 18 Gun 149 | 8 126 15 Cannon . | . . . Launcher 5 | . 2 3 Special . | . . . Kinetic 89 | 4 70 15 Thermal 60 | 4 56 . Explosive 2 | . 2 . Electromagnetic 3 | . . 3 Robot Hit Streak 8 | 7 8 4 Robot Miss Streak 4 | 1 4 4 Penetration Max . | . . . Secondary Targets 2 | . 1 1 Max Gunslinging Chain 1 | . 1 1 Shots Hit Robots 81 | 7 65 9 Core Hits 56 | 4 34 18 Critical Kills . | . . . Critical Parts Destroyed . | . . . Critical Strikes 4 | . 4 . Burn 4 | . 4 . Melee Attacks . | . . . Impact . | . . . Slashing . | . . . Piercing . | . . . Sneak Attacks . | . . . Combat Hostiles . | . . . Follow-up Attacks . | . . . Damage Inflicted 1824 | 91 1092 641 Guns 1022 | 89 816 117 Cannons . | . . . Explosions 800 | . 276 524 Melee . | . . . Ramming 2 | 2 . . Kinetic 555 | 52 386 117 Thermal 549 | 37 430 82 Explosive 276 | . 276 . Electromagnetic 442 | . . 442 Impact . | . . . Slashing . | . . . Piercing . | . . . Highest Corruption . | . . . Average Corruption . | . . . Corruption Purged . | . . . Corruption Blocked . | . . . Overload Shots . | . . . Overflow Damage 25 | . 3 22 Projectiles . | . . . Explosions 25 | . 3 22 Melee . | . . . Knockbacks . | . . . Impact . | . . . Kinetic . | . . . Secondary . | . . . Self-Inflicted Damage 61 | . 23 38 Shots 4 | . 1 3 Rammed . | . . . Targets Rammed 1 | 1 . . Kicked 1 | 1 . . Crushed . | . . . Highest Temperature 114 | 27 114 . Average Temperature 31 | 12 33 . Received Heat Transfer 153 | . 153 . Siege Activations . | . . . Robots Corrupted . | . . . Combat Hostiles . | . . . Parts Fried . | . . . Impact Corruptions . | . . . Robots Melted . | . . . Combat Hostiles . | . . . Parts Melted 2 | . 2 . Heat Transferred 1865 | 111 1554 200 Parts Sabotaged . | . . . Parts Stolen . | . . . Parts Stripped . | . . . Power Chain Reactions 1 | . . 1 Alert | -11 -10 -10 ------- Run | Yrd Mat Min Peak Influence 272 | 10 272 59 Initial 8 | . 6 8 Average 67 | 4 72 53 Maximum Alert Level 1 | . 1 . Low Security (%) 85 | 100 83 100 Level 1 14 | . 16 . Level 2 . | . . . Level 3 . | . . . Level 4 . | . . . Level 5 . | . . . High Security . | . . . Max Security . | . . . Squads Dispatched 3 | . 3 . Investigation 1 | . 1 . Extermination . | . . . Reinforcement 2 | . 2 . Assault . | . . . Garrison . | . . . Intercept . | . . . Searches Triggered . | . . . Construction Impeded . | . . . Haulers Reinforced . | . . . Active Scanning Responses . | . . . Cargo Convoy Interrupts . | . . . Stealth | -11 -10 -10 --------- Run | Yrd Mat Min Distress Signals 4 | . 4 . Communications Jammed . | . . . Distress Signals . | . . . Times Spotted 46 | . 27 19 Peak Tracking Total 16 | . 3 16 Tactical Retreats 2 | . 2 . Traps | -11 -10 -10 ------- Run | Yrd Mat Min Traps Triggered 5 | . 5 . Indirectly . | . . . Trap Hack Attempts . | . . . Triggered . | . . . Disarmed . | . . . Reprogrammed . | . . . Reused . | . . . Traps Extracted . | . . . Installed . | . . . Triggered . | . . . Machines | -11 -10 -10 ---------- Run | Yrd Mat Min Machines Disabled . | . . . Max in Single Turn . | . . . Machines Repaired . | . . . Machines Dismantled . | . . . Machines Sabotaged . | . . . Overloaded Fab Kills . | . . . Hacking | -11 -10 -10 --------- Run | Yrd Mat Min Machines Accessed 7 | . 7 . Terminals 6 | . 6 . Fabricators . | . . . Repair Stations 1 | . 1 . Recycling Units . | . . . Scanalyzers . | . . . Garrison Access . | . . . Total Hacks 20 | . 20 . Successful 12 | . 12 . Failed 8 | . 8 . Catastrophic 3 | . 3 . Database Lockouts . | . . . Manual 6 | . 6 . Terminals 18 | . 18 . Fabricators . | . . . Repair Stations 2 | . 2 . Recycling Units . | . . . Scanalyzers . | . . . Garrison Access . | . . . Terminal Hacks 7 | . 7 . Prototype ID Bank 1 | . 1 . Emergency Access Points 1 | . 1 . Unreport Threat 1 | . 1 . Investigation Status 1 | . 1 . Hauler Manifests 1 | . 1 . Registered Components 1 | . 1 . Registered Prototypes 1 | . 1 . Fabricator Hacks . | . . . Repair Station Hacks 1 | . 1 . Scan Component 1 | . 1 . Recycling Unit Hacks . | . . . Scanalyzer . | . . . Garrison Access Hacks . | . . . Unauthorized Hacks 4 | . 4 . Terminals 4 | . 4 . Botnet 3 | . 3 . Operators 1 | . 1 . Fabricators . | . . . Repair Stations . | . . . Recycling Units . | . . . Scanalyzers . | . . . Garrison Access . | . . . Data Cores Recovered . | . . . Used . | . . . Hacking Detections 5 | . 5 . Full Trace Events . | . . . Feedback Events . | . . . Feedback Blocked . | . . . Robot Schematics Acquired . | . . . Robots Built . | . . . Authchips . | . . . Time . | . . . Total Robot Build Rating . | . . . Part Schematics Acquired . | . . . Parts Built . | . . . Authchips . | . . . Time . | . . . Total Part Build Rating . | . . . Parts Repaired . | . . . Time . | . . . Parts Recycled . | . . . Recycled Matter . | . . . Retrieved Matter . | . . . Retrieved Components . | . . . Parts Scanalyzed . | . . . Part Schematics Acquired . | . . . Parts Damaged . | . . . Bothacking | -11 -10 -10 ------------ Run | Yrd Mat Min Used RIF Installer . | . . . Robots Hacked . | . . . Non-combat . | . . . Combat . | . . . Robot Hacks Applied . | . . . Relay Couplers Released . | . . . Fabnet Peak Effective % . | . . . Robots Rewired . | . . . Allies Hacked . | . . . Hacks Repelled . | . . . Allies | -11 -10 -10 -------- Run | Yrd Mat Min Total Allies . | . . . Largest Group . | . . . Highest-Rated Group . | . . . Highest-Rated Ally . | . . . Total Orders . | . . . Ally Attacks . | . . . Total Damage . | . . . Kills . | . . . Allies Corrupted . | . . . Allies Melted . | . . . Intel | -11 -10 -10 ------- Run | Yrd Mat Min Robot Analysis Total . | . . . Derelict Logs Recovered . | . . . Drone Launches . | . . . Drone Recoveries . | . . . Exploration | -11 -10 -10 ------------- Run | Yrd Mat Min Turns Passed 1541 | 103 1403 35 Spaces Moved 883 | 70 809 4 Core 12 | 12 . . Treads . | . . . Legs 871 | 58 809 4 Wheels . | . . . Hover . | . . . Flight . | . . . Fastest Speed 50 | 50 120 190 Average Speed 140 | 110 143 190 Slowest Speed 190 | 120 190 190 Overloaded Moves . | . . . Propulsion Burnouts . | . . . Robots Hopped . | . . . Cave-ins Triggered . | . . . Exploration Rate (%) 38 | 5 99 11 Regions Visited 2 Branch Regions 1 Pre-discovered Areas . | . . . Known Exits Taken . | . . . Unknown Exits Taken 2 | 1 1 . Scrap Searched . | . . . Spaces Dug . | . . . Terrain Destroyed 20 | . 19 1 Melee . | . . . Projectile . | . . . AOE 20 | . 19 1 Terrain Rammed . | . . . Walls Destroyed . | . . . Machines Disabled . | . . . Actions | -11 -10 -10 --------- Run | Yrd Mat Min Total 1028 | 84 930 14 Wait 10 | . 10 . Move 882 | 70 808 4 Hop . | . . . Pick Up 19 | 3 16 . Fast Attach 9 | 7 2 . Attach 1 | . 1 . Detach 1 | . 1 . Swap 13 | . 12 1 Drop 16 | . 16 . Fire 77 | 4 64 9 Melee . | . . . Ram . | . . . Kick . | . . . Crush . | . . . Escape Stasis . | . . . Rewire . | . . . Trap . | . . . Miscellaneous . | . . . Route ------- -11/Scrapyard -10/Materials (discovered 4 exits: [*Mat x3] / [*Min]) -10/Mines History --------- Turn | Location | Event 10 | -11/Scrapyard | Discovered new exit (range 16) 104 | -11/Scrapyard | Entered Materials 315 | -10/Materials | Build established: Mutant 553 | -10/Materials | Discovered new exit (range 7) 662 | -10/Materials | Discovered new exit (range 6) 784 | -10/Materials | Discovered new exit (range 8) 922 | -10/Materials | Core integrity fell below 50% 1095 | -10/Materials | Discovered new exit (range 4) 1133 | -10/Materials | Build established: Scavenger-Mutant 1507 | -10/Materials | Entered Mines 1508 | -10/Mines | Assembled infested the area 1539 | -10/Mines | Core integrity fell below 20% 1542 | -10/Mines | Destroyed by as-96079 with Assembled Heavy Rifle Last Messages --------------- 01405_ U-05 Engineer lays Concrete. 01407_ U-05 Engineer builds a Wall. 01412_ U-05 Engineer lays Concrete. LOCATION=UNKNOWN GOAL=ESCAPE Something is scanning the area. 01508_ ALERT: Infestation in the mines, dispatching Demolisher response squad. 01510_ S-10 Pest destroyed. 01510_ Switching to secondary target: S-10 Pest. 01510_ S-10 Pest destroyed. 01531_ Knocked back. 01538_ as-17045 destroyed. 01538_ Destroyed Asb. Hover Unit. 01538_ as-33622 destroyed. 01540_ Aluminum Leg destroyed. 01541_ Destroyed Asb. Hover Unit. 01541_ as-20172 destroyed. 01542_ Ion Engine destroyed. 01542_ System corrupted by crushing effect (+4). Map ----- +----------------------------------------------------+ | ?????????????????????????????????????????????????? | | ?????????????????????????????????????????????????? | | ?????????????????????????????????????????????????? | | ?????????????????????????????????????????????????? | | ?????????????????????????????????????????????????? | | ?????????????????????????????????????????????????? | | ?????????????????????????????????????????????????? | | ?????????????????????????????????????????????????? | | ?????????????????????????????????????????????????? | | ?????????????????????????????????????????????????? | | ?????????????????????#######?????????????????????? | | ????????????????????## ###???????????????????? | | ???????????##???????# ##??????????????????? | | ???????????# ?????## #??????????????????? | | ???????????# ???## #??????????????????? | | ??????????## #?## #??????????????????? | | ??????????# ## #??????????????????? | | ??????????# #??????????????????? | | ???????????# ##?????????????????? | | ??????????## ##????????????????? | | ???????? ## %a ##???????????????? | | ?????? aaa #???????????????? | | ????????# % aa #????????????????? | | ?????????# *% aaa% ##???????????????????? | | ?????????## ## [ #aa###????????????????????? | | ??????????????## ## ## @#??????????????????????? | | ???????????????##??##### t#??????????????????????? | | ???????????????????????# ##??????????????????????? | | ???????????????????????###???????????????????????? | | ?????????????????????????????????????????????????? | | ?????????????????????????????????????????????????? | | ?????????????????????????????????????????????????? | | ?????????????????????????????????????????????????? | | ?????????????????????????????????????????????????? | | ?????????????????????????????????????????????????? | | ?????????????????????????????????????????????????? | | | | | | | | | | | | | | | | | | | | | | | | | | | | | +----------------------------------------------------+ Best States ------------- Heat Dissipation 25 Energy Generation 10 Energy Capacity 250 Matter Stores 300 Matter Capacity 300 Sight Range 16 Terrain Scan Range 16 Terrain Scan Density 10 Evasion (%) 55 Offensive Hacking 10 Item Schematics ----------------- None Robot Schematics ------------------ None Fabricated ------------ Nothing Alien Tech Used ----------------- None Achievements -------------- None Challenges ------------ None Game ------ Seed MediumMatterCutter Manual? 0 Play Time 00:19:21 Cumulative 48.9 hours Start 2024.08.22 @ 21:09:08 End 2024.08.22 @ 21:40:38 Sessions 1 Manual Loads 0 Difficulty Rogue Special Mode None Game No. 65 Rogue 65 Adventurer 0 Explorer 0 Win Type - Total 0 Types 0/0/0/0/0/0/0/0/0 Lore% 14 Gallery% 26 Achievement% 26 Wizard Run 0 Options --------- Layout 1 ASCII 0 Keyboard 0 Movement Numpad Keybinds 0 Fullscreen 1 Font 32/SmallcapsGlow Map View 50x40 Zoom Use 5% Tactical HUD 1 Map Filters NONE Filters NONE Steam 1 RUN: 94515ede-e71c-4c01-a253-b5e5090e809b